[Event "Titled Tuesday Blitz March 14 Late 2023"]
[White "Sonnenschein, Philipp"]
[Black "Matinian, Nikita"]
[WhiteFideId "16250877"]
[BlackFideId "24129100"]
[WhiteElo "2224"]
[BlackElo "2422"]
[Result "0-1"]
[Round "07"]
[TimeControl "180+2"]
[Date "2023.03.14"]
[WhiteClock "0:00:11"]
[BlackClock "0:00:11"]

1. e4 {[%clk 0:03:00]}  c5 {[%clk 0:02:59]} 2. Nf3 {[%clk 0:03:01]}  e6 {[%clk 0:03:00]} 3. c3 {[%clk 0:02:58]}  g5 {[%clk 0:02:55]} 4. d4 {[%clk 0:02:55]}  g4 {[%clk 0:02:55]} 5. Ne5 {[%clk 0:02:54]}  h5 {[%clk 0:02:55]} 6. Na3 {[%clk 0:02:45]}  Nc6 {[%clk 0:02:53]} 7. Nxc6 {[%clk 0:02:40]}  bxc6 {[%clk 0:02:53]} 8. Nc4 {[%clk 0:02:38]}  d5 {[%clk 0:02:37]} 9. exd5 {[%clk 0:02:32]}  cxd5 {[%clk 0:02:36]} 10. Ne5 {[%clk 0:02:32]}  Bg7 {[%clk 0:02:34]} 11. Bb5+ {[%clk 0:02:25]}  Kf8 {[%clk 0:02:34]} 12. Bf4 {[%clk 0:02:15]}  Qb6 {[%clk 0:02:07]} 13. Be2 {[%clk 0:01:54]}  Ne7 {[%clk 0:01:51]} 14. O-O {[%clk 0:01:44]}  f6 {[%clk 0:01:45]} 15. dxc5 {[%clk 0:01:39]}  Qxc5 {[%clk 0:01:39]} 16. Nd3 {[%clk 0:01:39]}  Qa5 {[%clk 0:01:29]} 17. Bd6 {[%clk 0:01:35]}  Kf7 {[%clk 0:01:29]} 18. Nf4 {[%clk 0:01:18]}  Nf5 {[%clk 0:01:24]} 19. Bb4 {[%clk 0:01:16]}  Qc7 {[%clk 0:01:20]} 20. Qd2 {[%clk 0:01:03]}  Bh6 {[%clk 0:01:18]} 21. g3 {[%clk 0:01:03]}  Bb7 {[%clk 0:01:11]} 22. Bd3 {[%clk 0:01:02]}  Bxf4 {[%clk 0:01:07]} 23. gxf4 {[%clk 0:01:03]}  Nh4 {[%clk 0:01:06]} 24. Be2 {[%clk 0:01:00]}  a5 {[%clk 0:00:53]} 25. Ba3 {[%clk 0:00:56]}  Rhg8 {[%clk 0:00:47]} 26. Qd3 {[%clk 0:00:47]}  Rg7 {[%clk 0:00:38]} 27. c4 {[%clk 0:00:41]}  dxc4 {[%clk 0:00:33]} 28. Qd6 {[%clk 0:00:30]}  Qxd6 {[%clk 0:00:28]} 29. Bxd6 {[%clk 0:00:30]}  Rd8 {[%clk 0:00:26]} 30. Rfd1 {[%clk 0:00:28]}  Nf3+ {[%clk 0:00:22]} 31. Bxf3 {[%clk 0:00:28]}  gxf3+ {[%clk 0:00:23]} 32. Kh1 {[%clk 0:00:27]}  Rg2 {[%clk 0:00:22]} 33. Bc5 {[%clk 0:00:23]}  Rd3 {[%clk 0:00:22]} 34. Rg1 {[%clk 0:00:17]}  h4 {[%clk 0:00:18]} 35. Be3 {[%clk 0:00:15]}  Rxe3 {[%clk 0:00:16]} 36. fxe3 {[%clk 0:00:14]}  f2 {[%clk 0:00:11]} 37. Rxg2 {[%clk 0:00:14]}  h3 {[%clk 0:00:11]} 38. Rg1 {[%clk 0:00:12]}  hxg2+ {[%clk 0:00:11]} 39. Rxg2 {[%clk 0:00:11]}  f1=Q# {[%clk 0:00:11]} 0-1


[Site "https://www.chess.com"]

[Event "Titled Tuesday Blitz March 14 Late 2023"]
[White "Papasimakopoulos, Alexandros"]
[Black "Womacka, Mathias"]
[WhiteFideId "4244125"]
[BlackFideId "4611390"]
[WhiteElo "2359"]
[BlackElo "2377"]
[Result "1-0"]
[Round "07"]
[TimeControl "180+2"]
[Date "2023.03.14"]
[WhiteClock "0:01:04"]
[BlackClock "0:00:10"]

1. d4 {[%clk 0:03:00]}  Nf6 {[%clk 0:02:58]} 2. c4 {[%clk 0:02:50]}  e6 {[%clk 0:02:58]} 3. Nc3 {[%clk 0:02:50]}  Bb4 {[%clk 0:02:57]} 4. Qb3 {[%clk 0:02:49]}  c5 {[%clk 0:02:56]} 5. dxc5 {[%clk 0:02:49]}  Nc6 {[%clk 0:02:56]} 6. Nf3 {[%clk 0:02:49]}  Ne4 {[%clk 0:02:52]} 7. Bd2 {[%clk 0:02:49]}  Nxd2 {[%clk 0:02:51]} 8. Nxd2 {[%clk 0:02:50]}  Bxc5 {[%clk 0:02:44]} 9. e3 {[%clk 0:02:50]}  O-O {[%clk 0:02:43]} 10. Be2 {[%clk 0:02:50]}  b6 {[%clk 0:02:42]} 11. O-O {[%clk 0:02:50]}  Bb7 {[%clk 0:02:41]} 12. Rfd1 {[%clk 0:02:46]}  Ne5 {[%clk 0:02:32]} 13. Nce4 {[%clk 0:02:40]}  Rc8 {[%clk 0:02:11]} 14. Nxc5 {[%clk 0:02:32]}  Rxc5 {[%clk 0:02:12]} 15. f4 {[%clk 0:02:28]}  Ng6 {[%clk 0:02:10]} 16. Bf3 {[%clk 0:02:25]}  Bxf3 {[%clk 0:02:07]} 17. Nxf3 {[%clk 0:02:26]}  Qc7 {[%clk 0:02:05]} 18. Rd2 {[%clk 0:02:18]}  Rc8 {[%clk 0:01:59]} 19. Rad1 {[%clk 0:02:17]}  Nf8 {[%clk 0:01:59]} 20. Ne5 {[%clk 0:02:13]}  Rd8 {[%clk 0:01:45]} 21. Rd4 {[%clk 0:02:05]}  d5 {[%clk 0:00:59]} 22. cxd5 {[%clk 0:01:53]}  Rdxd5 {[%clk 0:00:58]} 23. Rxd5 {[%clk 0:01:51]}  exd5 {[%clk 0:00:57]} 24. Rxd5 {[%clk 0:01:50]}  Rc1+ {[%clk 0:00:41]} 25. Rd1 {[%clk 0:01:43]}  Rxd1+ {[%clk 0:00:39]} 26. Qxd1 {[%clk 0:01:44]}  Qc5 {[%clk 0:00:38]} 27. Kf2 {[%clk 0:01:41]}  Ne6 {[%clk 0:00:35]} 28. Qd7 {[%clk 0:01:36]}  Qc2+ {[%clk 0:00:12]} 29. Kf3 {[%clk 0:01:34]}  Qf5 {[%clk 0:00:10]} 30. Qc8+ {[%clk 0:01:04]} 1-0


[Site "https://www.chess.com"]

[Event "Titled Tuesday Blitz March 14 Late 2023"]
[White "Piesik, Piotr"]
[Black "Omelja, Artem"]
[WhiteFideId "1136194"]
[BlackFideId "14119846"]
[WhiteElo "2311"]
[BlackElo "2404"]
[Result "1/2-1/2"]
[Round "07"]
[TimeControl "180+2"]
[Date "2023.03.14"]
[WhiteClock "0:00:15"]
[BlackClock "0:00:09"]

1. Nf3 {[%clk 0:02:45]}  d5 {[%clk 0:02:56]} 2. g3 {[%clk 0:02:45]}  c5 {[%clk 0:02:55]} 3. Bg2 {[%clk 0:02:46]}  Nc6 {[%clk 0:02:56]} 4. O-O {[%clk 0:02:46]}  e5 {[%clk 0:02:55]} 5. d3 {[%clk 0:02:47]}  Nf6 {[%clk 0:02:55]} 6. Nbd2 {[%clk 0:02:48]}  Be7 {[%clk 0:02:55]} 7. e4 {[%clk 0:02:48]}  d4 {[%clk 0:02:52]} 8. Nc4 {[%clk 0:02:48]}  Qc7 {[%clk 0:02:51]} 9. a4 {[%clk 0:02:49]}  Be6 {[%clk 0:02:47]} 10. Ne1 {[%clk 0:02:49]}  h5 {[%clk 0:02:26]} 11. h3 {[%clk 0:02:47]}  O-O-O {[%clk 0:02:21]} 12. f4 {[%clk 0:02:46]}  Bxc4 {[%clk 0:02:20]} 13. dxc4 {[%clk 0:02:46]}  h4 {[%clk 0:02:21]} 14. g4 {[%clk 0:02:40]}  exf4 {[%clk 0:02:20]} 15. Bxf4 {[%clk 0:02:38]}  Bd6 {[%clk 0:02:20]} 16. Bg5 {[%clk 0:02:38]}  Rde8 {[%clk 0:02:11]} 17. Bxf6 {[%clk 0:02:34]}  gxf6 {[%clk 0:02:12]} 18. Rxf6 {[%clk 0:02:34]}  Bh2+ {[%clk 0:02:04]} 19. Kh1 {[%clk 0:02:34]}  Ne5 {[%clk 0:02:04]} 20. b3 {[%clk 0:02:20]}  Rhg8 {[%clk 0:01:59]} 21. Nd3 {[%clk 0:02:17]}  Bg3 {[%clk 0:01:51]} 22. Nxe5 {[%clk 0:02:04]}  Bxe5 {[%clk 0:01:50]} 23. Rf5 {[%clk 0:01:59]}  d3 {[%clk 0:01:49]} 24. Rb1 {[%clk 0:01:54]}  dxc2 {[%clk 0:01:48]} 25. Qxc2 {[%clk 0:01:55]}  Bd4 {[%clk 0:01:48]} 26. Rbf1 {[%clk 0:01:52]}  Re7 {[%clk 0:01:47]} 27. Qd2 {[%clk 0:01:39]}  Kb8 {[%clk 0:01:33]} 28. Qh6 {[%clk 0:01:35]}  Rh8 {[%clk 0:01:32]} 29. Qf4 {[%clk 0:01:31]}  Be5 {[%clk 0:01:30]} 30. Qf3 {[%clk 0:01:26]}  Rd8 {[%clk 0:01:27]} 31. Rxf7 {[%clk 0:01:17]}  Rxf7 {[%clk 0:01:22]} 32. Qxf7 {[%clk 0:01:18]}  Qxf7 {[%clk 0:01:18]} 33. Rxf7 {[%clk 0:01:19]}  Rd1+ {[%clk 0:01:18]} 34. Rf1 {[%clk 0:01:19]}  Rd3 {[%clk 0:01:08]} 35. Rf5 {[%clk 0:01:13]}  Bd4 {[%clk 0:00:57]} 36. e5 {[%clk 0:01:07]}  Rxb3 {[%clk 0:00:53]} 37. e6 {[%clk 0:01:04]}  Rb1+ {[%clk 0:00:48]} 38. Rf1 {[%clk 0:00:51]}  Rxf1+ {[%clk 0:00:45]} 39. Bxf1 {[%clk 0:00:52]}  Kc7 {[%clk 0:00:45]} 40. Bg2 {[%clk 0:00:52]}  Kd6 {[%clk 0:00:45]} 41. Bd5 {[%clk 0:00:48]}  Bf6 {[%clk 0:00:44]} 42. Kg2 {[%clk 0:00:48]}  Ke5 {[%clk 0:00:44]} 43. Kf3 {[%clk 0:00:47]}  Bg5 {[%clk 0:00:44]} 44. Bxb7 {[%clk 0:00:40]}  Kxe6 {[%clk 0:00:37]} 45. Ke4 {[%clk 0:00:41]}  Bd2 {[%clk 0:00:32]} 46. Bc8+ {[%clk 0:00:40]}  Kf6 {[%clk 0:00:30]} 47. Kd5 {[%clk 0:00:40]}  Bb4 {[%clk 0:00:30]} 48. a5 {[%clk 0:00:34]}  Bxa5 {[%clk 0:00:30]} 49. Kxc5 {[%clk 0:00:34]}  Bd2 {[%clk 0:00:28]} 50. Ba6 {[%clk 0:00:30]}  Ke5 {[%clk 0:00:18]} 51. Kc6 {[%clk 0:00:27]}  Be3 {[%clk 0:00:07]} 52. c5 {[%clk 0:00:25]}  Bf2 {[%clk 0:00:06]} 53. Kb5 {[%clk 0:00:19]}  Be3 {[%clk 0:00:04]} 54. Bb7 {[%clk 0:00:14]}  Bf2 {[%clk 0:00:03]} 55. Bg2 {[%clk 0:00:13]}  Be3 {[%clk 0:00:03]} 56. Bf1 {[%clk 0:00:13]}  Bf2 {[%clk 0:00:02]} 57. Bd3 {[%clk 0:00:13]}  Be3 {[%clk 0:00:02]} 58. Bc2 {[%clk 0:00:12]}  Bf2 {[%clk 0:00:02]} 59. c6 {[%clk 0:00:12]}  Kd6 {[%clk 0:00:01]} 60. g5 {[%clk 0:00:12]}  Bd4 {[%clk 0:00:02]} 61. Be4 {[%clk 0:00:10]}  Bg7 {[%clk 0:00:02]} 62. Ka6 {[%clk 0:00:10]}  Bd4 {[%clk 0:00:02]} 63. Kb7 {[%clk 0:00:10]}  Bb6 {[%clk 0:00:01]} 64. g6 {[%clk 0:00:11]}  Ke7 {[%clk 0:00:02]} 65. c7 {[%clk 0:00:10]}  Bxc7 {[%clk 0:00:02]} 66. Kxc7 {[%clk 0:00:11]}  a5 {[%clk 0:00:02]} 67. Kc6 {[%clk 0:00:11]}  a4 {[%clk 0:00:02]} 68. Kb5 {[%clk 0:00:11]}  a3 {[%clk 0:00:02]} 69. Bd5 {[%clk 0:00:11]}  Kf6 {[%clk 0:00:02]} 70. Kb4 {[%clk 0:00:10]}  Kxg6 {[%clk 0:00:02]} 71. Kxa3 {[%clk 0:00:11]}  Kg7 {[%clk 0:00:03]} 72. Kb4 {[%clk 0:00:11]}  Kh8 {[%clk 0:00:04]} 73. Kc5 {[%clk 0:00:12]}  Kg7 {[%clk 0:00:04]} 74. Kd6 {[%clk 0:00:12]}  Kh8 {[%clk 0:00:05]} 75. Ke7 {[%clk 0:00:13]}  Kg7 {[%clk 0:00:06]} 76. Ke6 {[%clk 0:00:13]}  Kh8 {[%clk 0:00:07]} 77. Kf5 {[%clk 0:00:14]}  Kg7 {[%clk 0:00:08]} 78. Kg5 {[%clk 0:00:14]}  Kh8 {[%clk 0:00:09]} 79. Kh6 {[%clk 0:00:15]} 1/2-1/2


[Site "https://www.chess.com"]

[Event "Titled Tuesday Blitz March 14 Late 2023"]
[White "Saveliev, Alexei"]
[Black "Grycel, Kamil"]
[WhiteFideId "24128546"]
[BlackFideId "1115499"]
[WhiteElo "2271"]
[BlackElo "2471"]
[Result "1-0"]
[Round "07"]
[TimeControl "180+2"]
[Date "2023.03.14"]
[WhiteClock "0:00:59"]
[BlackClock "0:00:57"]

1. c4 {[%clk 0:03:00]}  b6 {[%clk 0:03:00]} 2. Nc3 {[%clk 0:03:01]}  Bb7 {[%clk 0:03:00]} 3. d4 {[%clk 0:03:01]}  e6 {[%clk 0:02:59]} 4. a3 {[%clk 0:03:02]}  Nf6 {[%clk 0:02:59]} 5. d5 {[%clk 0:03:02]}  Bd6 {[%clk 0:02:58]} 6. e4 {[%clk 0:02:59]}  Be5 {[%clk 0:02:58]} 7. Bd3 {[%clk 0:02:59]}  Bxc3+ {[%clk 0:02:56]} 8. bxc3 {[%clk 0:02:59]}  e5 {[%clk 0:02:56]} 9. f4 {[%clk 0:02:58]}  d6 {[%clk 0:02:54]} 10. fxe5 {[%clk 0:02:58]}  dxe5 {[%clk 0:02:54]} 11. c5 {[%clk 0:02:53]}  bxc5 {[%clk 0:02:51]} 12. Rb1 {[%clk 0:02:53]}  Bc8 {[%clk 0:02:48]} 13. Nf3 {[%clk 0:02:53]}  Nbd7 {[%clk 0:02:38]} 14. O-O {[%clk 0:02:47]}  O-O {[%clk 0:02:37]} 15. Bg5 {[%clk 0:02:42]}  h6 {[%clk 0:02:36]} 16. Bh4 {[%clk 0:02:42]}  Qe7 {[%clk 0:02:25]} 17. Bb5 {[%clk 0:02:31]}  Qd6 {[%clk 0:02:03]} 18. Qe2 {[%clk 0:02:05]}  a5 {[%clk 0:01:49]} 19. a4 {[%clk 0:01:39]}  Ba6 {[%clk 0:01:45]} 20. c4 {[%clk 0:01:40]}  Ra7 {[%clk 0:01:29]} 21. h3 {[%clk 0:01:24]}  Bc8 {[%clk 0:01:25]} 22. g4 {[%clk 0:01:15]}  Nh7 {[%clk 0:01:23]} 23. Bg3 {[%clk 0:01:12]}  Re8 {[%clk 0:01:21]} 24. Nh4 {[%clk 0:01:00]}  Qg6 {[%clk 0:00:57]} 25. Nxg6 {[%clk 0:00:59]} 1-0


[Site "https://www.chess.com"]

[Event "Titled Tuesday Blitz March 14 Late 2023"]
[White "Sreyas Payyappat"]
[Black "O`Gorman, Tom"]
[WhiteFideId "46674969"]
[BlackFideId "2508249"]
[WhiteElo "2083"]
[BlackElo "2271"]
[Result "0-1"]
[Round "07"]
[TimeControl "180+2"]
[Date "2023.03.14"]
[WhiteClock "0:00:57"]
[BlackClock "0:01:48"]

1. e4 {[%clk 0:02:57]}  c5 {[%clk 0:02:59]} 2. Nf3 {[%clk 0:02:56]}  d6 {[%clk 0:03:00]} 3. d4 {[%clk 0:02:57]}  cxd4 {[%clk 0:03:01]} 4. Nxd4 {[%clk 0:02:58]}  Nf6 {[%clk 0:03:01]} 5. Nc3 {[%clk 0:02:58]}  a6 {[%clk 0:03:02]} 6. h4 {[%clk 0:02:58]}  e5 {[%clk 0:03:01]} 7. Nb3 {[%clk 0:02:58]}  Be6 {[%clk 0:02:59]} 8. f4 {[%clk 0:02:58]}  exf4 {[%clk 0:02:59]} 9. Bxf4 {[%clk 0:02:59]}  Be7 {[%clk 0:02:59]} 10. Qd2 {[%clk 0:02:58]}  Nc6 {[%clk 0:02:59]} 11. O-O-O {[%clk 0:02:58]}  O-O {[%clk 0:02:49]} 12. g3 {[%clk 0:02:58]}  Rc8 {[%clk 0:02:47]} 13. Bh3 {[%clk 0:02:55]}  Bxh3 {[%clk 0:02:43]} 14. Rxh3 {[%clk 0:02:56]}  Ne5 {[%clk 0:02:43]} 15. Rhh1 {[%clk 0:02:47]}  Qb6 {[%clk 0:02:38]} 16. Rhg1 {[%clk 0:02:44]}  Nf3 {[%clk 0:02:35]} 17. Be3 {[%clk 0:02:28]}  Qd8 {[%clk 0:02:35]} 18. Qe2 {[%clk 0:02:25]}  Nxg1 {[%clk 0:02:35]} 19. Rxg1 {[%clk 0:02:26]}  Rxc3 {[%clk 0:02:31]} 20. bxc3 {[%clk 0:02:25]}  Nxe4 {[%clk 0:02:31]} 21. Bd4 {[%clk 0:02:21]}  d5 {[%clk 0:02:32]} 22. Nd2 {[%clk 0:02:21]}  Re8 {[%clk 0:02:25]} 23. Nxe4 {[%clk 0:02:18]}  Ba3+ {[%clk 0:02:25]} 24. Kd1 {[%clk 0:02:17]}  Rxe4 {[%clk 0:02:26]} 25. Qf3 {[%clk 0:02:16]}  Qe7 {[%clk 0:02:23]} 26. Rf1 {[%clk 0:02:15]}  f6 {[%clk 0:02:19]} 27. Qh5 {[%clk 0:02:13]}  Qe6 {[%clk 0:02:12]} 28. Kd2 {[%clk 0:02:04]}  Bd6 {[%clk 0:02:10]} 29. Qf3 {[%clk 0:01:44]}  Qg4 {[%clk 0:02:04]} 30. Qd3 {[%clk 0:01:38]}  Qxg3 {[%clk 0:02:01]} 31. Be3 {[%clk 0:01:24]}  Qg2+ {[%clk 0:01:57]} 32. Rf2 {[%clk 0:01:23]}  Qg4 {[%clk 0:01:53]} 33. Qxd5+ {[%clk 0:01:21]}  Qe6 {[%clk 0:01:53]} 34. Qd3 {[%clk 0:00:57]}  Rxe3 {[%clk 0:01:44]} 35. Qxe3 {[%clk 0:00:55]}  Qxe3+ {[%clk 0:01:45]} 36. Kxe3 {[%clk 0:00:55]}  Bc5+ {[%clk 0:01:45]} 37. Kf3 {[%clk 0:00:56]}  Bxf2 {[%clk 0:01:46]} 38. Kxf2 {[%clk 0:00:57]}  Kf7 {[%clk 0:01:46]} 39. Ke3 {[%clk 0:00:58]}  Ke6 {[%clk 0:01:47]} 40. Kd4 {[%clk 0:00:58]}  g5 {[%clk 0:01:47]} 41. hxg5 {[%clk 0:00:57]}  fxg5 {[%clk 0:01:48]} 0-1


[Site "https://www.chess.com"]

[Event "Titled Tuesday Blitz March 14 Late 2023"]
[White "Ronka, Erik"]
[Black "Chor, Kevin"]
[WhiteFideId "505080"]
[BlackFideId "2090740"]
[WhiteElo "2264"]
[BlackElo "2610"]
[Result "0-1"]
[Round "07"]
[TimeControl "180+2"]
[Date "2023.03.14"]
[WhiteClock "0:02:25"]
[BlackClock "0:01:48"]

1. e4 {[%clk 0:03:00]}  c5 {[%clk 0:03:00]} 2. Nf3 {[%clk 0:03:01]}  Nc6 {[%clk 0:02:58]} 3. Bb5 {[%clk 0:03:01]}  d6 {[%clk 0:02:58]} 4. c3 {[%clk 0:03:00]}  Nf6 {[%clk 0:02:56]} 5. e5 {[%clk 0:02:56]}  dxe5 {[%clk 0:02:57]} 6. Bxc6+ {[%clk 0:02:54]}  bxc6 {[%clk 0:02:56]} 7. Nxe5 {[%clk 0:02:55]}  Qd5 {[%clk 0:02:51]} 8. Qe2 {[%clk 0:02:52]}  Qxg2 {[%clk 0:02:44]} 9. Rf1 {[%clk 0:02:52]}  Bh3 {[%clk 0:02:40]} 10. Na3 {[%clk 0:02:47]}  Qxf1+ {[%clk 0:02:35]} 11. Qxf1 {[%clk 0:02:48]}  Bxf1 {[%clk 0:02:36]} 12. Kxf1 {[%clk 0:02:48]}  Rc8 {[%clk 0:02:24]} 13. d3 {[%clk 0:02:48]}  e6 {[%clk 0:02:22]} 14. Be3 {[%clk 0:02:47]}  Nd5 {[%clk 0:02:18]} 15. Bd2 {[%clk 0:02:47]}  f6 {[%clk 0:02:14]} 16. Nf3 {[%clk 0:02:46]}  Be7 {[%clk 0:02:12]} 17. Nc4 {[%clk 0:02:47]}  Kf7 {[%clk 0:02:10]} 18. a3 {[%clk 0:02:46]}  Rhd8 {[%clk 0:02:06]} 19. b4 {[%clk 0:02:47]}  Nb6 {[%clk 0:02:04]} 20. Nxb6 {[%clk 0:02:45]}  axb6 {[%clk 0:02:05]} 21. Ke2 {[%clk 0:02:46]}  e5 {[%clk 0:02:03]} 22. Ne1 {[%clk 0:02:44]}  Ra8 {[%clk 0:02:01]} 23. Nc2 {[%clk 0:02:42]}  Ra7 {[%clk 0:02:01]} 24. Rb1 {[%clk 0:02:42]}  Rad7 {[%clk 0:02:00]} 25. Ne1 {[%clk 0:02:41]}  c4 {[%clk 0:01:59]} 26. Kd1 {[%clk 0:02:37]}  cxd3 {[%clk 0:01:59]} 27. c4 {[%clk 0:02:38]}  e4 {[%clk 0:01:58]} 28. Be3 {[%clk 0:02:37]}  b5 {[%clk 0:01:55]} 29. c5 {[%clk 0:02:36]}  f5 {[%clk 0:01:53]} 30. f3 {[%clk 0:02:35]}  Bf6 {[%clk 0:01:49]} 31. fxe4 {[%clk 0:02:25]}  Re8 {[%clk 0:01:49]} 32. Ng2 {[%clk 0:02:26]}  Rxe4 {[%clk 0:01:48]} 33. Bf2 {[%clk 0:02:25]} 0-1


[Site "https://www.chess.com"]

[Event "Titled Tuesday Blitz March 14 Late 2023"]
[White "Garrido Dominguez, Jesus"]
[Black "Crevatin, Leo"]
[WhiteFideId "2254174"]
[BlackFideId "1726307"]
[WhiteElo "2385"]
[BlackElo "2190"]
[Result "1-0"]
[Round "07"]
[TimeControl "180+2"]
[Date "2023.03.14"]
[WhiteClock "0:00:24"]
[BlackClock "0:00:50"]

1. e4 {[%clk 0:03:00]}  c5 {[%clk 0:02:59]} 2. Nf3 {[%clk 0:03:00]}  d6 {[%clk 0:02:59]} 3. d4 {[%clk 0:03:00]}  cxd4 {[%clk 0:02:59]} 4. Nxd4 {[%clk 0:03:01]}  Nf6 {[%clk 0:03:00]} 5. Bd3 {[%clk 0:03:01]}  g6 {[%clk 0:02:59]} 6. O-O {[%clk 0:03:01]}  Bg7 {[%clk 0:02:59]} 7. Nc3 {[%clk 0:03:00]}  O-O {[%clk 0:02:59]} 8. Nde2 {[%clk 0:03:00]}  Nc6 {[%clk 0:02:57]} 9. h3 {[%clk 0:03:00]}  Nb4 {[%clk 0:02:54]} 10. a3 {[%clk 0:02:58]}  Nxd3 {[%clk 0:02:54]} 11. cxd3 {[%clk 0:02:58]}  Bd7 {[%clk 0:02:43]} 12. Be3 {[%clk 0:02:58]}  a6 {[%clk 0:02:43]} 13. Rc1 {[%clk 0:02:58]}  Rc8 {[%clk 0:02:43]} 14. Qd2 {[%clk 0:02:58]}  Re8 {[%clk 0:02:42]} 15. Rfd1 {[%clk 0:02:55]}  Qa5 {[%clk 0:02:41]} 16. Bg5 {[%clk 0:02:45]}  Qb6 {[%clk 0:02:33]} 17. b4 {[%clk 0:02:36]}  Qa7 {[%clk 0:02:28]} 18. Rc2 {[%clk 0:02:15]}  a5 {[%clk 0:02:28]} 19. b5 {[%clk 0:02:13]}  a4 {[%clk 0:02:28]} 20. Rdc1 {[%clk 0:02:12]}  Qa5 {[%clk 0:02:19]} 21. b6 {[%clk 0:01:39]}  Qxb6 {[%clk 0:02:13]} 22. Bxf6 {[%clk 0:01:37]}  Bxf6 {[%clk 0:02:14]} 23. Nd5 {[%clk 0:01:37]}  Qb3 {[%clk 0:02:10]} 24. Nxf6+ {[%clk 0:01:35]}  exf6 {[%clk 0:02:11]} 25. Rc3 {[%clk 0:01:25]}  Rxc3 {[%clk 0:02:08]} 26. Rxc3 {[%clk 0:01:25]}  Qb1+ {[%clk 0:02:08]} 27. Kh2 {[%clk 0:01:25]}  b5 {[%clk 0:02:03]} 28. Rc7 {[%clk 0:01:24]}  Be6 {[%clk 0:01:58]} 29. Nf4 {[%clk 0:01:21]}  Qb3 {[%clk 0:01:53]} 30. Rc3 {[%clk 0:01:16]}  Qb1 {[%clk 0:01:54]} 31. Rc7 {[%clk 0:01:16]}  b4 {[%clk 0:01:51]} 32. axb4 {[%clk 0:00:43]}  a3 {[%clk 0:01:50]} 33. Qc3 {[%clk 0:00:44]}  Qb2 {[%clk 0:01:43]} 34. Qc6 {[%clk 0:00:41]}  Rf8 {[%clk 0:01:37]} 35. Ra7 {[%clk 0:00:38]}  Bb3 {[%clk 0:01:20]} 36. Qxd6 {[%clk 0:00:29]}  a2 {[%clk 0:01:17]} 37. Qa6 {[%clk 0:00:29]}  Qxf2 {[%clk 0:01:08]} 38. Nd5 {[%clk 0:00:28]}  Bxd5 {[%clk 0:01:02]} 39. exd5 {[%clk 0:00:28]}  Qe1 {[%clk 0:01:02]} 40. Qxa2 {[%clk 0:00:27]}  Qe5+ {[%clk 0:00:59]} 41. g3 {[%clk 0:00:26]}  Qc3 {[%clk 0:00:56]} 42. Ra8 {[%clk 0:00:25]}  Qxb4 {[%clk 0:00:52]} 43. Rxf8+ {[%clk 0:00:24]}  Kxf8 {[%clk 0:00:53]} 44. h4 {[%clk 0:00:24]}  h5 {[%clk 0:00:51]} 45. Qc4 {[%clk 0:00:24]}  Qd2+ {[%clk 0:00:50]} 46. Kh1 {[%clk 0:00:24]} 1-0


[Site "https://www.chess.com"]

[Event "Titled Tuesday Blitz March 14 Late 2023"]
[White "Fiorito, Joaquin"]
[Black "Senft, Sean"]
[WhiteFideId "180173"]
[BlackFideId "2044960"]
[WhiteElo "2157"]
[BlackElo "1989"]
[Result "1-0"]
[Round "07"]
[TimeControl "180+2"]
[Date "2023.03.14"]
[WhiteClock "0:00:47"]
[BlackClock "0:00:39"]

1. d4 {[%clk 0:03:00]}  d5 {[%clk 0:02:57]} 2. Nc3 {[%clk 0:03:01]}  Nf6 {[%clk 0:02:57]} 3. Bf4 {[%clk 0:03:01]}  c6 {[%clk 0:02:57]} 4. e3 {[%clk 0:03:01]}  e6 {[%clk 0:02:52]} 5. Nf3 {[%clk 0:03:00]}  Bd6 {[%clk 0:02:51]} 6. Ne5 {[%clk 0:03:00]}  Qc7 {[%clk 0:02:48]} 7. Bd3 {[%clk 0:02:57]}  Nbd7 {[%clk 0:02:48]} 8. Nxd7 {[%clk 0:02:54]}  Bxd7 {[%clk 0:02:48]} 9. Bxd6 {[%clk 0:02:53]}  Qxd6 {[%clk 0:02:49]} 10. O-O {[%clk 0:02:51]}  c5 {[%clk 0:02:49]} 11. dxc5 {[%clk 0:02:49]}  Qxc5 {[%clk 0:02:50]} 12. Qd2 {[%clk 0:02:40]}  O-O {[%clk 0:02:49]} 13. Rac1 {[%clk 0:02:30]}  Bc6 {[%clk 0:02:47]} 14. Ne2 {[%clk 0:02:29]}  e5 {[%clk 0:02:44]} 15. c4 {[%clk 0:02:28]}  d4 {[%clk 0:02:39]} 16. exd4 {[%clk 0:02:27]}  exd4 {[%clk 0:02:39]} 17. b4 {[%clk 0:02:23]}  Qd6 {[%clk 0:02:28]} 18. b5 {[%clk 0:02:20]}  Bd7 {[%clk 0:02:12]} 19. Nxd4 {[%clk 0:02:10]}  Rad8 {[%clk 0:02:12]} 20. Rfd1 {[%clk 0:01:57]}  Bg4 {[%clk 0:02:12]} 21. Be2 {[%clk 0:01:57]}  Ne4 {[%clk 0:01:45]} 22. Qe3 {[%clk 0:01:52]}  Bxe2 {[%clk 0:01:30]} 23. Qxe2 {[%clk 0:01:52]}  Rfe8 {[%clk 0:01:29]} 24. Nf3 {[%clk 0:01:25]}  Qc5 {[%clk 0:01:05]} 25. Rxd8 {[%clk 0:01:23]}  Rxd8 {[%clk 0:00:56]} 26. Qxe4 {[%clk 0:01:23]}  h6 {[%clk 0:00:51]} 27. h3 {[%clk 0:01:21]}  Qa3 {[%clk 0:00:50]} 28. Re1 {[%clk 0:01:18]}  Qxa2 {[%clk 0:00:49]} 29. Ne5 {[%clk 0:01:15]}  Rd2 {[%clk 0:00:44]} 30. Qf3 {[%clk 0:01:10]}  Qa5 {[%clk 0:00:37]} 31. Qxf7+ {[%clk 0:01:09]}  Kh8 {[%clk 0:00:37]} 32. Ng6+ {[%clk 0:00:54]}  Kh7 {[%clk 0:00:38]} 33. Re8 {[%clk 0:00:48]}  Rd1+ {[%clk 0:00:38]} 34. Kh2 {[%clk 0:00:48]}  Qc7+ {[%clk 0:00:39]} 35. Qxc7 {[%clk 0:00:47]} 1-0


[Site "https://www.chess.com"]